bitfinex/quotes_BTCUSD_20240717
["timestamp","ask_amount","ask_price","bid_price","bid_amount"]
[1721214135789,0.57269152,65208.0,65207.0,0.000924]
[1721214139608,1.24427191,65208.0,65207.0,0.000924]
[1721214139806,2.05113791,65208.0,65207.0,0.000924]
[1721214140150,2.00895091,65208.0,65207.0,0.000924]
[1721214140373,0.95391591,65208.0,65207.0,0.000924]
[1721214140573,0.83633591,65208.0,65207.0,0.000924]
[1721214140713,0.64083391,65208.0,65207.0,0.000924]
[1721214141487,0.52674306,65208.0,65207.0,0.000924]
[1721214141655,0.59047139,65208.0,65207.0,0.000924]
[1721214141859,0.49827139,65208.0,65207.0,0.000924]
[1721214142056,0.48427139,65208.0,65207.0,0.000924]
[1721214142666,0.49827139,65208.0,65207.0,0.000924]
[1721214142984,0.48427139,65208.0,65207.0,0.000924]
[1721214143341,0.49827139,65208.0,65207.0,0.000924]
[1721214143888,0.48427139,65208.0,65207.0,0.000924]
[1721214144103,0.49827139,65208.0,65207.0,0.000924]
[1721214144773,0.49879783,65208.0,65207.0,0.000924]
[1721214146978,0.44879783,65208.0,65207.0,0.000924]
[1721214147177,0.49879783,65208.0,65207.0,0.000924]
[1721214147382,0.57979783,65208.0,65207.0,0.000924]
[1721214148124,0.57981054,65208.0,65207.0,0.000924]
[1721214150103,0.56581054,65208.0,65207.0,0.000924]
[1721214150645,0.84121054,65208.0,65207.0,0.000924]
[1721214150799,0.82721054,65208.0,65207.0,0.000924]
[1721214150979,0.81321054,65208.0,65207.0,0.000924]
[1721214151184,0.82666907,65208.0,65207.0,0.000924]
[1721214151812,1.32666907,65208.0,65207.0,0.000924]
[1721214152913,1.34066907,65208.0,65207.0,0.000924]
[1721214153509,1.49543151,65208.0,65207.0,0.000924]
[1721214154352,1.32657052,65208.0,65207.0,0.000924]
[1721214154552,1.49519671,65208.0,65207.0,0.000924]
[1721214154710,1.48119671,65208.0,65207.0,0.000924]
[1721214156210,1.49518256,65208.0,65207.0,0.000924]
[1721214156478,1.34047703,65208.0,65207.0,0.000924]
[1721214157182,1.13047703,65208.0,65207.0,0.000924]
[1721214157378,0.98407703,65208.0,65207.0,0.000924]
[1721214157518,0.88454306,65208.0,65207.0,0.000924]
[1721214157723,0.58391118,65208.0,65207.0,0.000924]
[1721214157931,0.48422747,65208.0,65207.0,0.000924]
[1721214158372,0.44822747,65208.0,65207.0,0.000924]
[1721214158588,0.58578817,65208.0,65207.0,0.000924]
[1721214158893,0.38046438,65208.0,65207.0,0.000924]
[1721214159089,0.43046438,65208.0,65207.0,0.000924]
[1721214159298,0.38046438,65208.0,65207.0,0.000924]
[1721214159452,0.36646438,65208.0,65207.0,0.000924]
[1721214159648,0.35246438,65208.0,65207.0,0.000924]
[1721214159849,0.41646438,65208.0,65207.0,0.000924]
[1721214160050,0.63562312,65208.0,65207.0,0.000924]
[1721214160252,0.57162312,65208.0,65199.0,0.047866]
[1721214160594,0.11464387,65203.0,65200.0,0.0769]
[1721214160819,0.33330221,65202.0,65200.0,0.0769]
[1721214160940,0.05592047,65201.0,65200.0,0.0769]
[1721214161142,0.21030221,65201.0,65200.0,0.0769]
[1721214161552,0.31030221,65201.0,65200.0,0.0769]
[1721214161746,0.36279682,65201.0,65200.0,0.0769]
[1721214163331,0.36279682,65201.0,65200.0,0.1373]
[1721214163760,0.39079682,65201.0,65200.0,0.1373]
[1721214164233,0.37648792,65201.0,65200.0,0.1373]
[1721214164686,0.41348792,65201.0,65200.0,0.1373]
[1721214167270,0.39048792,65201.0,65200.0,0.1373]
[1721214167504,0.39082603,65201.0,65200.0,0.1373]
[1721214170743,0.39063158,65201.0,65200.0,0.1373]
[1721214171151,0.50533036,65201.0,65200.0,0.1373]
[1721214171354,0.05,65199.0,65195.0,0.009218]
[1721214171556,0.20438174,65196.0,65195.0,0.009218]
[1721214171682,0.45043276,65196.0,65195.0,0.009218]
[1721214172085,0.4504244,65196.0,65195.0,0.009218]
[1721214173881,0.35398091,65196.0,65195.0,0.009218]
[1721214174086,0.50202611,65196.0,65195.0,0.009218]
[1721214175129,0.56602611,65196.0,65195.0,0.009218]
[1721214175964,0.40134613,65196.0,65195.0,0.009218]
[1721214176288,0.54474613,65196.0,65195.0,0.009218]
[1721214176496,0.40134613,65196.0,65195.0,0.009218]
[1721214176902,0.51602611,65196.0,65195.0,0.009218]
[1721214177112,0.40134613,65196.0,65195.0,0.009218]
[1721214177528,0.40109154,65196.0,65195.0,0.009218]
[1721214180381,0.40109154,65196.0,65195.0,0.155618]
[1721214180382,0.30638089,65196.0,65195.0,0.155618]
[1721214180566,0.33782978,65196.0,65195.0,0.155618]
[1721214182950,0.3387118,65196.0,65195.0,0.155618]
[1721214183800,0.30638089,65196.0,65195.0,0.155618]
[1721214184008,0.33872982,65196.0,65195.0,0.155618]
[1721214184206,0.38638379,65196.0,65195.0,0.155618]
[1721214184625,0.38638379,65196.0,65195.0,0.009218]
[1721214186284,0.38632539,65196.0,65195.0,0.009218]
[1721214189022,0.43632539,65196.0,65195.0,0.009218]
[1721214189275,0.43632539,65196.0,65181.0,0.002794]
[1721214189276,0.05,65191.0,65181.0,0.002794]
[1721214189474,0.1448,65195.0,65169.0,0.009196]
[1721214189475,0.1948,65175.0,65169.0,0.009196]
[1721214189631,0.1948,65175.0,65167.0,0.025]
[1721214189632,0.05,65168.0,65167.0,0.025]
[1721214189840,0.09699915,65168.0,65167.0,0.025]
[1721214190043,0.55545634,65168.0,65167.0,0.025]
[1721214190278,0.55545634,65168.0,65154.0,0.009196]
[1721214190279,0.6912,65156.0,65154.0,0.009196]
[1721214190536,0.6912,65156.0,65129.0,0.025]
[1721214190537,0.05,65142.0,65129.0,0.025]
[1721214190760,0.25947162,65142.0,65129.0,0.025]
[1721214190896,0.25947162,65142.0,65114.0,0.07717479]
[1721214190897,0.21051846,65142.0,65141.0,0.00781742]
[1721214191115,0.31051846,65142.0,65141.0,0.00781742]
[1721214191352,0.31311848,65142.0,65141.0,0.00781742]
[1721214191580,0.31547131,65142.0,65141.0,0.00781742]
[1721214191796,0.28651931,65142.0,65141.0,0.00781742]
[1721214192438,0.25438174,65142.0,65141.0,0.00781742]
[1721214192781,0.3167347,65142.0,65141.0,0.00781742]
[1721214192950,0.25438174,65142.0,65141.0,0.00781742]
[1721214193255,0.33073732,65142.0,65141.0,0.00781742]
[1721214193455,0.31838174,65142.0,65141.0,0.00781742]
[1721214193785,0.33238174,65142.0,65141.0,0.00781742]
[1721214193935,0.31838174,65142.0,65141.0,0.00781742]
[1721214194134,0.30438174,65142.0,65141.0,0.00781742]
[1721214194336,0.32998176,65142.0,65141.0,0.00781742]
[1721214194536,0.34398176,65142.0,65141.0,0.00781742]
[1721214195336,0.35798176,65142.0,65141.0,0.00781742]
[1721214195535,0.28498176,65142.0,65141.0,0.00781742]
[1721214195762,0.26838174,65142.0,65141.0,0.00781742]
[1721214196318,0.28238174,65142.0,65141.0,0.00781742]
[1721214196603,0.28492041,65142.0,65141.0,0.00781742]
[1721214197030,0.25692041,65142.0,65141.0,0.00781742]
[1721214197209,0.27092041,65142.0,65141.0,0.00781742]
[1721214197509,0.79781641,65142.0,65141.0,0.00781742]
[1721214197682,1.14590241,65142.0,65141.0,0.00781742]
[1721214197885,0.88577535,65142.0,65141.0,0.00781742]
[1721214198102,0.85193035,65142.0,65141.0,0.00781742]
[1721214198301,0.71082795,65142.0,65141.0,0.0044211]
[1721214198546,0.77186904,65142.0,65141.0,0.0044211]
[1721214198826,0.75786904,65142.0,65141.0,0.0044211]
[1721214198998,0.77233044,65142.0,65141.0,0.0044211]
[1721214199200,0.75833044,65142.0,65141.0,0.0044211]
[1721214199402,0.68282795,65142.0,65141.0,0.0044211]
[1721214199608,0.71082795,65142.0,65141.0,0.0044211]
[1721214199983,0.69682795,65142.0,65141.0,0.0044211]
[1721214200383,0.71082795,65142.0,65141.0,0.0044211]
[1721214200628,0.69682795,65142.0,65141.0,0.0044211]
[1721214201003,0.68282795,65142.0,65141.0,0.0044211]
[1721214201204,0.69682795,65142.0,65141.0,0.0044211]
[1721214202070,0.37842793,65142.0,65141.0,0.0044211]
[1721214202204,0.27842793,65142.0,65141.0,0.0044211]
[1721214202405,0.18232039,65142.0,65141.0,0.0044211]
[1721214202612,0.16832039,65142.0,65141.0,0.0044211]
[1721214203030,0.18232039,65142.0,65141.0,0.0044211]
[1721214203241,0.16832039,65142.0,65141.0,0.0044211]
[1721214203451,0.15432039,65142.0,65141.0,0.0044211]
[1721214203655,0.16832039,65142.0,65141.0,0.0044211]
[1721214203906,0.18232039,65142.0,65141.0,0.0044211]
[1721214204280,0.16832039,65142.0,65141.0,0.0044211]
[1721214204681,0.014,65142.0,65141.0,0.0044211]
[1721214205134,0.00260002,65159.0,65141.0,0.0044211]
[1721214205457,0.002794,65155.0,65142.0,0.0815]
[1721214205580,0.15438174,65154.0,65142.0,0.0815]
[1721214205783,0.46304871,65173.0,65141.0,0.0044211]
[1721214205784,0.002794,65153.0,65144.0,0.1296]
[1721214206013,0.12717479,65182.0,65150.0,0.143]
[1721214206014,0.46304871,65172.0,65150.0,0.143]
[1721214206232,0.15717574,65171.0,65151.0,0.0634]
[1721214206789,0.014,65155.0,65151.0,0.0634]
[1721214206960,0.014,65154.0,65151.0,0.0634]
[1721214208308,0.002794,65170.0,65151.0,0.0634]
[1721214208530,0.15438174,65169.0,65151.0,0.0634]
[1721214208716,0.102794,65168.0,65152.0,0.143]
[1721214208917,0.002794,65168.0,65153.0,0.04567593]
[1721214209142,0.51304871,65192.0,65156.0,0.0814]
[1721214209143,0.00539402,65188.0,65156.0,0.0814]
[1721214209298,0.00539402,65188.0,65160.0,0.0814]
[1721214209299,0.15438174,65187.0,65160.0,0.0814]
[1721214209512,0.15438174,65187.0,65156.0,0.15438174]
[1721214209513,0.00539402,65186.0,65163.0,0.0616]
[1721214209715,0.15438174,65185.0,65164.0,0.00306879]
[1721214209939,0.014,65168.0,65164.0,0.00306879]
[1721214210140,0.028,65168.0,65164.0,0.00306879]
[1721214212835,0.002794,65196.0,65176.0,0.0622]
[1721214213066,0.014,65185.0,65176.0,0.0622]
[1721214213267,0.012,65184.0,65176.0,0.07624]
[1721214213740,0.014,65185.0,65176.0,0.07624]
[1721214213966,0.014,65185.0,65176.0,0.07724]
[1721214214672,0.014,65185.0,65176.0,0.07624]
[1721214214890,0.011,65184.0,65176.0,0.07724]
[1721214215144,0.011,65184.0,65176.0,0.05224]
[1721214215933,0.011,65184.0,65176.0,0.0382]
[1721214216188,0.025,65184.0,65177.0,0.0785]
[1721214216917,0.15438174,65195.0,65177.0,0.0785]
[1721214217174,0.46304871,65193.0,65177.0,0.0785]
[1721214217406,0.00539402,65192.0,65177.0,0.0785]
[1721214217636,0.00260002,65192.0,65177.0,0.0785]
[1721214218118,0.10260002,65192.0,65178.0,0.0646]
[1721214218358,0.008,65184.0,65178.0,0.0646]
[1721214218574,0.1,65192.0,65178.0,0.0646]
[1721214218831,0.1,65192.0,65179.0,0.0030679]
[1721214219027,0.014,65192.0,65179.0,0.0030679]
[1721214219203,0.00084,65199.0,65181.0,0.0646]
[1721214219402,0.15438174,65198.0,65181.0,0.0646]
[1721214219617,0.008,65184.0,65181.0,0.0646]
[1721214219813,0.012,65192.0,65181.0,0.08583779]
[1721214220220,0.026,65192.0,65181.0,0.08583779]
[1721214220356,0.014,65192.0,65181.0,0.08583779]
[1721214220564,0.014,65192.0,65181.0,0.08890561]
[1721214220768,0.014,65192.0,65182.0,0.02336156]
[1721214221583,0.026,65192.0,65182.0,0.02336156]
[1721214221783,0.012,65192.0,65182.0,0.02336156]
[1721214222107,0.008,65184.0,65182.0,0.02336156]
[1721214222320,0.012,65192.0,65182.0,0.02336156]
[1721214222658,0.012,65192.0,65183.0,0.01836716]
[1721214222840,0.026,65192.0,65183.0,0.01836716]
[1721214222994,0.1,65197.0,65183.0,0.01836716]
[1721214223475,0.008,65184.0,65183.0,0.01836716]
[1721214224699,0.008,65184.0,65183.0,0.01936716]
[1721214224860,0.112,65197.0,65183.0,0.01936716]
[1721214225057,0.112,65197.0,65184.0,0.01642672]
[1721214225302,0.014,65192.0,65184.0,0.01642672]
[1721214226074,0.1,65197.0,65184.0,0.01642672]
[1721214226544,0.009,65192.0,65184.0,0.01742672]
[1721214227142,0.021,65192.0,65184.0,0.01842672]
[1721214227354,0.021,65192.0,65185.0,0.01633267]
[1721214227582,0.021,65192.0,65187.0,0.0657]
[1721214228127,0.012,65192.0,65188.0,0.00306765]
[1721214228331,0.012,65192.0,65187.0,0.0657]
[1721214228530,0.012,65192.0,65184.0,0.002]
[1721214228531,0.012,65192.0,65189.0,0.1431]
[1721214228740,0.012,65192.0,65189.0,0.14616742]
[1721214228946,0.014,65192.0,65189.0,0.14616742]
[1721214229144,0.014,65192.0,65189.0,0.1431]
[1721214229575,0.014,65192.0,65189.0,0.14616738]
[1721214229730,0.022,65192.0,65189.0,0.30054912]
[1721214230136,0.019,65192.0,65191.0,0.1431]
[1721214230336,0.019,65192.0,65191.0,0.2161]
[1721214230507,0.019,65192.0,65191.0,0.21916725]
[1721214230752,0.008,65192.0,65191.0,0.1661]
[1721214230954,0.011,65192.0,65191.0,0.23466366]
[1721214231271,0.011,65192.0,65191.0,0.39211263]
[1721214231474,0.009,65192.0,65191.0,0.3890454]
[1721214231711,0.011,65192.0,65191.0,0.4390454]
[1721214231911,0.00084,65199.0,65196.0,0.0768]
[1721214232113,0.00084,65199.0,65198.0,0.1391]
[1721214232316,0.00084,65199.0,65198.0,0.29348174]
[1721214232519,0.00084,65199.0,65198.0,0.1621]
[1721214233657,0.00084,65199.0,65198.0,0.1391]
[1721214234815,0.00284,65199.0,65198.0,0.31548374]
[1721214235015,0.00284,65199.0,65198.0,0.40203211]
[1721214235222,0.00084,65199.0,65198.0,0.35203211]
[1721214235420,0.00084,65199.0,65198.0,0.57583211]
[1721214235657,0.00084,65199.0,65198.0,0.62683211]
[1721214235970,0.00084,65208.0,65204.0,0.076]
[1721214236208,0.00084,65208.0,65205.0,0.0126]
[1721214236821,0.00084,65208.0,65205.0,0.16698174]
[1721214236956,0.00084,65208.0,65206.0,0.17738174]
[1721214237381,0.0615,65233.0,65206.0,0.17738174]
[1721214237596,0.1,65218.0,65206.0,0.17738174]
[1721214237804,0.002794,65229.0,65208.0,0.0646]
[1721214237980,0.15438174,65228.0,65208.0,0.0646]
[1721214238390,0.002794,65227.0,65208.0,0.0646]
[1721214238583,0.15438174,65226.0,65208.0,0.0646]
[1721214238989,0.07717479,65224.0,65208.0,0.0646]
[1721214239189,0.07717479,65224.0,65209.0,0.03845599]
[1721214239752,0.002794,65223.0,65209.0,0.03845599]
[1721214240096,0.002794,65224.0,65210.0,0.0773]
[1721214240296,0.008794,65224.0,65210.0,0.0773]
[1721214240598,0.07717479,65217.0,65208.0,0.001]
[1721214240817,0.002794,65215.0,65208.0,0.001]
[1721214241004,0.002794,65209.0,65208.0,0.001]
[1721214241206,0.15698176,65209.0,65208.0,0.001]
[1721214241608,0.25698176,65209.0,65208.0,0.001]
[1721214241923,0.25698176,65209.0,65185.0,0.00306778]
[1721214241924,0.002794,65208.0,65185.0,0.00306778]
[1721214242147,0.002794,65208.0,65186.0,0.17428852]
[1721214242148,0.1,65208.0,65186.0,0.17428852]
[1721214242324,0.1,65208.0,65193.0,0.0652]
[1721214242533,0.1,65208.0,65197.0,0.05]
[1721214242732,0.007,65209.0,65208.0,0.002]
[1721214243178,0.46584271,65220.0,65208.0,0.0662]
[1721214243179,0.46304871,65220.0,65208.0,0.0662]
[1721214243431,0.46304871,65220.0,65209.0,0.00892]
[1721214243654,0.0795,65228.0,65210.0,0.0829]
[1721214243856,0.15717574,65227.0,65209.0,0.00892]
[1721214245124,0.15717574,65227.0,65209.0,0.00992]
[1721214245125,0.17117574,65227.0,65209.0,0.00992]
[1721214245332,0.17117574,65227.0,65210.0,0.015802]
[1721214245333,0.1,65226.0,65210.0,0.015802]
[1721214245526,0.15717574,65225.0,65210.0,0.015802]
[1721214245727,0.1,65224.0,65210.0,0.015802]
[1721214245963,0.15717574,65223.0,65210.0,0.015802]
[1721214246140,0.1,65222.0,65210.0,0.015802]
[1721214246353,0.1,65222.0,65211.0,0.0173822]
[1721214246354,0.002794,65221.0,65211.0,0.0173822]
[1721214246559,0.25438174,65222.0,65209.0,0.001]
[1721214247335,0.002794,65221.0,65209.0,0.001]
[1721214247538,0.25438174,65222.0,65209.0,0.001]
[1721214247745,0.25438174,65222.0,65208.0,0.0652]
[1721214248056,0.25438174,65222.0,65210.0,0.001]
[1721214248057,0.1,65222.0,65210.0,0.001]
[1721214248258,0.009,65224.0,65211.0,0.01945917]
[1721214248485,0.017,65224.0,65211.0,0.02252563]
[1721214248642,0.008,65224.0,65214.0,0.04549173]
[1721214248846,0.008,65222.0,65216.0,0.081]
[1721214249068,0.008,65222.0,65217.0,0.0647]
[1721214249230,0.008,65222.0,65218.0,0.04559733]
[1721214249432,0.002794,65234.0,65218.0,0.04559733]
[1721214249757,0.002794,65234.0,65217.0,0.133096]
[1721214249758,0.007,65222.0,65219.0,0.04559727]
[1721214249942,0.007,65222.0,65220.0,0.03737115]
[1721214250432,0.009,65224.0,65221.0,0.0683959]
[1721214250601,0.009,65224.0,65221.0,0.04563028]
[1721214250740,0.009,65224.0,65222.0,0.0683959]
[1721214251151,0.00084,65235.0,65222.0,0.0683959]
[1721214251152,0.00084,65235.0,65223.0,0.00306619]
[1721214251367,0.46304871,65233.0,65228.0,0.1433]
[1721214251730,0.00084,65235.0,65230.0,0.04562137]
[1721214251898,0.15438174,65234.0,65230.0,0.04562137]
[1721214252119,0.15438174,65234.0,65226.0,0.04562137]
[1721214252320,0.00260002,65233.0,65226.0,0.04562137]
[1721214252517,0.15178172,65233.0,65226.0,0.04567313]
[1721214252718,0.15178172,65233.0,65227.0,0.04567313]
[1721214253120,0.15178172,65233.0,65230.0,0.001]
[1721214253567,0.1,65232.0,65230.0,0.001]
[1721214254591,0.014,65233.0,65230.0,0.04667313]
[1721214254592,0.023,65233.0,65230.0,0.04667313]
[1721214254990,0.009,65233.0,65229.0,0.04570679]
[1721214255512,0.022,65233.0,65230.0,0.001]
[1721214255654,0.022,65233.0,65229.0,0.04570679]
[1721214255878,0.033,65233.0,65230.0,0.04671602]
[1721214256275,0.00084,65235.0,65230.0,0.04571602]
[1721214256698,0.013,65233.0,65231.0,0.04571602]
[1721214256933,0.00084,65232.0,65231.0,0.04571602]
[1721214257235,0.00084,65232.0,65230.0,0.04571602]
[1721214257536,0.00084,65232.0,65229.0,0.04571602]
[1721214257735,0.00984,65232.0,65230.0,0.001]
[1721214258284,0.00084,65232.0,65230.0,0.001]
[1721214258751,0.00984,65232.0,65230.0,0.001]
[1721214259155,0.00984,65232.0,65230.0,0.002]
[1721214259156,0.01984,65232.0,65230.0,0.002]
[1721214260160,0.01984,65232.0,65231.0,0.1441]
[1721214260953,0.01084,65232.0,65231.0,0.15871]
[1721214261182,0.01084,65232.0,65231.0,0.16177574]
[1721214261387,0.01984,65232.0,65231.0,0.15971]
[1721214261791,0.00984,65232.0,65231.0,0.15971]
[1721214262141,0.01984,65232.0,65231.0,0.1461]
[1721214262370,0.29092174,65232.0,65224.0,0.06856922]
[1721214262577,0.29092174,65232.0,65214.0,0.04571281]
[1721214262578,0.07717479,65227.0,65214.0,0.04571281]
[1721214262781,0.15977576,65231.0,65209.0,0.04571281]
[1721214262782,0.15698176,65226.0,65209.0,0.04571281]
[1721214262991,0.1357,65223.0,65205.0,0.1415]
[1721214263191,0.07717479,65217.0,65200.0,0.04571281]
[1721214263403,0.07717479,65217.0,65195.0,0.11428204]
[1721214263404,0.07717479,65210.0,65193.0,0.04571281]
[1721214263600,0.15977576,65209.0,65190.0,0.06856922]
[1721214263818,0.15977576,65209.0,65188.0,0.04571281]
[1721214263819,0.002794,65207.0,65188.0,0.04571281]
[1721214263943,0.1,65208.0,65187.0,0.0633]
[1721214263944,0.002794,65205.0,65187.0,0.04571281]
[1721214264145,0.002794,65203.0,65186.0,0.1415]
[1721214264529,0.002794,65201.0,65186.0,0.1415]
[1721214265031,0.54294871,65192.0,65183.0,0.04571281]
[1721214265278,0.54294871,65192.0,65191.0,0.001924]
[1721214265279,0.29858174,65192.0,65191.0,0.001924]
[1721214265498,0.39858174,65192.0,65191.0,0.001924]
[1721214265712,0.1,65192.0,65191.0,0.000924]
[1721214265924,0.1,65192.0,65191.0,0.00085573]
[1721214265925,0.25438174,65192.0,65191.0,0.00085573]
[1721214266377,0.1,65192.0,65191.0,0.00085573]
[1721214266595,0.1643,65198.0,65191.0,0.00085573]
[1721214266776,0.15717574,65197.0,65191.0,0.00085573]
[1721214267095,0.003,65192.0,65191.0,0.00085573]
[1721214267317,0.003,65192.0,65191.0,0.0156613]
[1721214267464,0.008,65201.0,65191.0,0.0156613]
[1721214267666,0.008,65201.0,65192.0,0.00306725]
[1721214267872,0.008,65201.0,65191.0,0.0156613]
[1721214267873,0.01,65198.0,65191.0,0.0166613]
[1721214268048,0.01,65198.0,65192.0,0.01538613]
[1721214268254,0.01,65198.0,65193.0,0.00306727]
[1721214268486,0.01,65198.0,65193.0,0.20744901]
[1721214268770,0.008,65197.0,65192.0,0.01538613]
[1721214269121,0.008,65197.0,65195.0,0.1453]
[1721214269335,0.46304871,65207.0,65196.0,0.21816135]
[1721214269743,0.081,65221.0,65196.0,0.04077961]
[1721214269958,0.081,65221.0,65195.0,0.1453]
[1721214269959,0.16100966,65220.0,65195.0,0.1453]
[1721214270399,0.001,65197.0,65195.0,0.1453]
[1721214270622,0.16100966,65220.0,65195.0,0.1453]
[1721214270623,0.004,65198.0,65195.0,0.1453]
[1721214270833,0.004,65198.0,65196.0,0.001]
[1721214271264,0.002794,65214.0,65195.0,0.1453]
[1721214271468,0.46304871,65212.0,65196.0,0.01753474]
[1721214271670,0.002794,65211.0,65196.0,0.01753474]
[1721214271873,0.102794,65212.0,65196.0,0.01753474]
[1721214272953,0.102794,65212.0,65197.0,0.17738174]
[1721214273155,0.002794,65220.0,65198.0,0.03902165]
[1721214273367,0.014,65212.0,65199.0,0.02606687]
[1721214273813,0.002794,65217.0,65199.0,0.00306687]
[1721214274038,0.002794,65217.0,65201.0,0.1397]
[1721214274039,0.011,65212.0,65201.0,0.1397]
[1721214274250,0.018,65212.0,65202.0,0.21299208]
[1721214274469,0.007,65212.0,65203.0,0.1397]
[1721214274642,0.002794,65222.0,65204.0,0.15438174]
[1721214274904,0.007,65212.0,65205.0,0.06326921]
[1721214275116,0.007,65212.0,65206.0,0.15438174]
[1721214275525,0.002794,65222.0,65206.0,0.15338174]
[1721214275734,0.002,65212.0,65207.0,0.1417]
[1721214275997,0.011,65212.0,65208.0,0.17738174]
[1721214276212,0.002,65212.0,65210.0,0.1417]
[1721214276468,0.002,65212.0,65211.0,0.23044791]
[1721214276669,0.003,65212.0,65211.0,0.49947588]
[1721214276947,0.002,65212.0,65211.0,0.5783275]
[1721214277156,0.002,65212.0,65211.0,0.52526133]
[1721214277370,0.003,65212.0,65211.0,0.39793273]
[1721214277581,0.002794,65227.0,65211.0,0.39793273]
[1721214277781,0.002794,65227.0,65212.0,0.06411678]
[1721214278012,0.002794,65227.0,65213.0,0.17738174]
[1721214278434,0.002794,65231.0,65213.0,0.17738174]
[1721214279223,0.07717479,65227.0,65213.0,0.15438174]
[1721214279427,0.002794,65226.0,65212.0,0.06411678]
[1721214279655,0.002794,65226.0,65213.0,0.001]
[1721214279867,0.002794,65229.0,65213.0,0.001]
[1721214280756,0.01,65227.0,65213.0,0.001]
[1721214280958,0.002794,65226.0,65214.0,0.01437]
[1721214281195,0.002794,65229.0,65214.0,0.01437]
[1721214281408,0.002794,65226.0,65214.0,0.01437]
[1721214281986,0.002794,65226.0,65202.0,0.04579409]
[1721214281987,0.0652,65224.0,65213.0,0.001]
[1721214282949,0.1,65216.0,65199.0,0.1417]
[1721214283148,0.1482,65197.0,65174.0,0.04579409]
[1721214283336,0.22537479,65181.0,65155.0,0.57753394]
[1721214283511,0.32537479,65181.0,65155.0,0.46304871]
[1721214283714,0.38008187,65181.0,65147.0,0.24579409]
[1721214284173,0.38008187,65181.0,65147.0,0.2]
[1721214284571,0.53446361,65181.0,65147.0,0.2]
[1721214284894,0.54546361,65181.0,65180.0,0.026]
[1721214285131,0.47975653,65181.0,65180.0,0.025]
[1721214285345,0.40258174,65181.0,65180.0,0.025]
[1721214285591,0.41658174,65181.0,65180.0,0.026]
[1721214287342,0.05,65164.0,65145.0,0.009185]
[1721214287563,0.5,65174.0,65145.0,0.009185]
[1721214287564,0.1421,65146.0,65145.0,0.009185]
[1721214287771,0.15631,65146.0,65145.0,0.009185]
[1721214288001,0.25631,65146.0,65145.0,0.009185]
[1721214288196,0.31014843,65146.0,65145.0,0.009185]
[1721214288622,0.3622749,65146.0,65145.0,0.009185]
[1721214288828,0.3702749,65146.0,65145.0,0.009185]
[1721214289025,0.3342749,65146.0,65145.0,0.009185]
[1721214289230,0.4232656,65146.0,65145.0,0.009185]
[1721214289433,0.32113913,65146.0,65145.0,0.00682687]
[1721214289716,0.32958174,65146.0,65145.0,0.00682687]
[1721214289924,0.1752,65146.0,65145.0,0.00682687]
[1721214290291,0.22958174,65146.0,65145.0,0.00682687]
[1721214290535,0.31558174,65146.0,65145.0,0.00682687]
[1721214291007,0.34358174,65146.0,65145.0,0.00782687]
[1721214291241,0.32958174,65146.0,65145.0,0.00782687]
[1721214291410,0.32958174,65146.0,65145.0,0.00682687]
[1721214291690,0.34358174,65146.0,65145.0,0.00782687]
[1721214294447,0.39358174,65146.0,65145.0,0.00782687]
[1721214295127,0.41658174,65146.0,65145.0,0.00782687]
[1721214295356,0.38858174,65146.0,65145.0,0.00682687]
[1721214295770,0.40258174,65146.0,65145.0,0.00682687]
[1721214296120,0.37958174,65146.0,65145.0,0.00682687]
[1721214297697,0.32958174,65146.0,65145.0,0.00682687]
[1721214297900,0.34358174,65146.0,65145.0,0.00782687]
[1721214298084,0.39066082,65146.0,65145.0,0.00782687]
[1721214298257,0.35040874,65146.0,65145.0,0.00782687]
[1721214298461,0.35040874,65146.0,65145.0,0.00682687]
[1721214298462,0.33640874,65146.0,65145.0,0.00682687]
[1721214298847,0.35040874,65146.0,65145.0,0.00782687]
[1721214299528,0.35040874,65146.0,65145.0,0.00682687]
[1721214299529,0.33640874,65146.0,65145.0,0.00682687]
[1721214299724,0.35040874,65146.0,65145.0,0.00782687]
[1721214300712,0.33640874,65146.0,65145.0,0.00782687]
[1721214300918,0.27520874,65146.0,65145.0,0.00782687]
[1721214301103,0.15438174,65146.0,65145.0,0.00782687]
[1721214301231,0.15438174,65146.0,65145.0,0.00682687]
[1721214301659,0.16838174,65146.0,65145.0,0.00782687]
[1721214301857,0.18238174,65146.0,65145.0,0.00782687]
[1721214302055,0.028,65146.0,65145.0,0.00782687]
[1721214302419,0.014,65146.0,65145.0,0.00682687]
[1721214302537,0.042,65146.0,65145.0,0.00782687]
[1721214308860,0.19638174,65146.0,65145.0,0.00782687]
[1721214309091,0.42258174,65146.0,65145.0,0.00782687]
[1721214309299,0.37258174,65146.0,65145.0,0.00782687]
[1721214309483,0.42258174,65146.0,65145.0,0.00782687]
[1721214309692,0.35858174,65146.0,65145.0,0.00682687]
[1721214310095,0.35858174,65146.0,65145.0,0.00782687]
[1721214310816,0.33058174,65146.0,65145.0,0.00782687]
[1721214311175,0.34458174,65146.0,65145.0,0.00882687]
[1721214311388,0.33058174,65146.0,65145.0,0.00682687]
[1721214311785,0.39558174,65146.0,65145.0,0.00882687]
[1721214311992,0.34558174,65146.0,65145.0,0.00882687]
[1721214312176,0.34458174,65146.0,65145.0,0.00782687]
[1721214312593,0.34458174,65146.0,65145.0,0.00882687]
[1721214312814,0.33058174,65146.0,65145.0,0.00782687]
[1721214313018,0.33058174,65146.0,65145.0,0.00682687]
[1721214313547,0.25438174,65146.0,65145.0,0.00782687]
[1721214313711,0.1,65146.0,65145.0,0.00782687]
[1721214313919,0.01445905,65152.0,65145.0,0.00782687]
[1721214314117,0.15438174,65151.0,65145.0,0.00782687]
[1721214314318,0.102794,65150.0,65145.0,0.00782687]
[1721214314571,0.15438174,65149.0,65145.0,0.00782687]
[1721214314772,0.013,65146.0,65145.0,0.00782687]
[1721214314928,0.014,65146.0,65145.0,0.00882687]
[1721214315574,0.00663193,65147.0,65145.0,0.00682687]
[1721214315779,0.15438174,65146.0,65145.0,0.00782687]
[1721214315956,0.25438174,65146.0,65145.0,0.00882687]